[Event "13th Senioren-Cup Tegernsee 2025"]
[Site "Rottach-Egern"]
[Date "2025.04.05"]
[Round "8.2"]
[White "Heinbuch, Detlef Ulrich"]
[Black "Loew, Gerald"]
[Result "1/2-1/2"]
[Annotator "ChessBase"]
[ECO "E04"]
[WhiteElo "2263"]
[BlackElo "2175"]
[PlyCount "71"]
[EventDate "2025.03.25"]
[EventType "swiss"]
[EventCountry "GER"]
[SourceTitle "playchess.com"]
[Source "ChessBase"]
[SourceQuality "1"]
[TimeControl "7800+30"]

1. Nf3 {[%emt 0:00:05]} d5 {[%emt 0:00:16]} 2. g3 {[%emt 0:00:25]} c5 {[%emt 0:03:11]} 3. Bg2 {[%emt 0:01:07]} Nc6 {[%emt 0:00:30]} 4. d4 {[%emt 2:10:53]} Nf6 {[%emt 0:01:14]} 5. O-O {[%emt 0:00:00]} e6 {[%emt 0:01:54]} 6. c4 {[%emt 0:00:00]} dxc4 {[%emt 0:01:18]} 7. dxc5 {[%emt 0:00:00]} Qxd1 {[%emt 0:00:26]} 8. Rxd1 {[%emt 0:00:00]} Bxc5 {[%emt 0:00:11]} 9. Nbd2 {[%emt 0:00:00]} c3 {[%emt 0:00:33]} 10. bxc3 {[%emt 0:00:00]} O-O {[%emt 0:00:31]} 11. Nb3 {[%emt 0:00:00]} Be7 {[%emt 0:00:18]} 12. Nfd4 {[%emt 0:00:00]} Nxd4 {[%emt 0:00:56]} 13. cxd4 {[%emt 0:00:00]} Nd5 {[%emt 0:00:14]} 14. Na5 {[%emt 0:00:00]} Bb4 {[%emt 0:14:58]} 15. Nc4 {[%emt 0:00:00]} Bd7 {[%emt 0:01:23]} 16. Bd2 {[%emt 0:00:00]} Ba4 {[%emt 0:13:15]} 17. Rdc1 {[%emt 0:00:00]} Rad8 {[%emt 0:15:04]} 18. e3 {[%emt 0:00:00]} Bxd2 {[%emt 0:14:16]} 19. Nxd2 {[%emt 0:00:00]} Bc6 {[%emt 0:02:29]} 20. Nb3 {[%emt 0:00:00]} Ne7 {[%emt 0:06:15]} 21. Bxc6 {[%emt 0:00:00]} Nxc6 {[%emt 0:00:20]} 22. Nc5 {[%emt 0:00:00]} Na5 {[%emt 0:01:37]} 23. Rc3 {[%emt 0:00:00]} Rd6 {[%emt 0:08:23]} 24. Rac1 {[%emt 0:00:00]} Rc8 {[%emt 0:03:52]} 25. Kf1 {[%emt 0:00:00]} Rdc6 {[%emt 0:06:29]} 26. Ke2 {[%emt 0:00:00]} b6 {[%emt 0:03:10]} 27. Ne4 {[%emt 0:00:00]} f5 {[%emt 0:08:55]} 28. Rxc6 {[%emt 0:00:00]} Nxc6 {[%emt 0:00:15]} 29. Nc3 {[%emt 0:00:00]} Nb4 {[%emt 0:00:32]} 30. Kd2 {[%emt 0:00:00]} Nd5 {[%emt 0:06:53]} 31. Ne2 {[%emt 0:00:00]} Rxc1 {[%emt 0:00:31]} 32. Nxc1 {[%emt 0:00:00]} g5 {[%emt 0:05:45]} 33. h3 {[%emt 0:00:00]} h5 {[%emt 0:02:50]} 34. f3 {[%emt 0:00:00]} Kf7 {[%emt 0:03:16]} 35. Nd3 {[%emt 0:00:00]} Kf6 {[%emt 0:01:48]} 36. e4 {[%emt 0:00:00]} 1/2-1/2

[Event "13th Senioren-Cup Tegernsee 2025"]
[Site "Rottach-Egern"]
[Date "2025.04.05"]
[Round "8.3"]
[White "Pieper, Thomas"]
[Black "Cordts, Ingo"]
[Result "1/2-1/2"]
[Annotator "RC"]
[ECO "C54"]
[WhiteElo "2178"]
[BlackElo "2151"]
[PlyCount "22"]
[EventDate "2025.03.25"]
[EventType "swiss"]
[EventCountry "GER"]
[SourceTitle "playchess.com"]
[Source "ChessBase"]
[SourceQuality "1"]
[TimeControl "7800+30"]

1. e4 {[%emt 0:00:02]} e5 {[%emt 0:00:09]} 2. Nf3 {[%emt 0:00:19]} Nc6 {[%emt 0:00:07]} 3. Bc4 {[%emt 0:00:06]} Bc5 {[%emt 0:00:15]} 4. c3 {[%emt 0:00:15]} Nf6 {[%emt 0:00:15]} 5. d4 {[%emt 0:00:08]} exd4 {[%emt 0:00:12]} 6. b4 {[%emt 0:00:17]} Bb6 {[%emt 0:00:10]} 7. e5 {[%emt 0:00:31]} Ne4 {[%emt 0:00:45]} 8. Bd5 {[%emt 0:00:55]} Nxc3 {[%emt 0:00:13]} 9. Nxc3 {[%emt 0:00:06]} dxc3 {[%emt 0:00:02]} 10. Bg5 {[%emt 0:01:19]} Ne7 {[%emt 0:00:07]} 11. O-O {[%emt 0:01:19]} h6 {[%emt 0:00:16]} 1/2-1/2

[Event "13th Senioren-Cup Tegernsee 2025"]
[Site "Rottach-Egern"]
[Date "2025.04.05"]
[Round "8.4"]
[White "Ernst, Michael"]
[Black "Lindam, Ingo"]
[Result "1-0"]
[Annotator "ChessBase"]
[ECO "E32"]
[WhiteElo "2035"]
[BlackElo "2151"]
[PlyCount "159"]
[EventDate "2025.03.25"]
[EventType "swiss"]
[EventCountry "GER"]
[SourceTitle "playchess.com"]
[Source "ChessBase"]
[SourceQuality "1"]
[TimeControl "7800+30"]

1. d4 {[%emt 0:00:05]} Nf6 {[%emt 0:00:01]} 2. c4 {[%emt 0:00:18]} e6 {[%emt 0:00:35]} 3. Nc3 {[%emt 0:00:15]} Bb4 {[%emt 0:00:08]} 4. Qc2 {[%emt 0:00:08]} d6 {[%emt 0:00:10]} 5. a3 {[%emt 0:00:47]} Bxc3+ {[%emt 0:00:11]} 6. Qxc3 {[%emt 0:00:03]} Nbd7 {[%emt 0:00:35]} 7. Bg5 {[%emt 0:00:50]} h6 {[%emt 0:00:32]} 8. Bh4 {[%emt 0:00:31]} g5 {[%emt 0:00:29]} 9. Bg3 {[%emt 0:00:04]} Ne4 {[%emt 0:00:41]} 10. Qc2 {[%emt 0:00:10]} f5 {[%emt 0:02:29]} 11. f3 {[%emt 0:01:06]} Nxg3 {[%emt 0:00:47]} 12. hxg3 {[%emt 0:00:03]} Qf6 {[%emt 0:02:32]} 13. e3 {[%emt 0:01:28]} e5 {[%emt 0:12:27]} 14. Ne2 {[%emt 0:13:30]} O-O {[%emt 0:09:44]} 15. Qd2 {[%emt 0:08:38]} Re8 {[%emt 0:08:31]} 16. Kf2 {[%emt 0:00:14]} Qg7 {[%emt 0:11:14]} 17. Nc3 {[%emt 0:02:44]} Nf6 {[%emt 0:04:00]} 18. Be2 {[%emt 0:02:23]} Bd7 {[%emt 0:13:14]} 19. Nd5 {[%emt 0:03:56]} Nxd5 {[%emt 0:09:53]} 20. cxd5 {[%emt 0:00:05]} exd4 {[%emt 0:01:45]} 21. Qxd4 {[%emt 0:00:45]} Qxd4 {[%emt 0:01:32]} 22. exd4 {[%emt 0:00:03]} Kg7 {[%emt 0:00:43]} 23. Rac1 {[%emt 0:01:02]} Rac8 {[%emt 0:00:34]} 24. Rc3 {[%emt 0:05:20]} c6 {[%emt 0:08:41]} 25. dxc6 {[%emt 0:01:50]} Rxc6 {[%emt 0:02:03]} 26. Rhc1 {[%emt 0:03:52]} Rec8 {[%emt 0:07:51]} 27. Bc4 {[%emt 0:04:32]} Rb6 {[%emt 0:13:54]} 28. R3c2 {[%emt 0:09:47]} Rbc6 {[%emt 0:03:17]} 29. Bb3 {[%emt 0:01:49]} Rxc2+ {[%emt 0:04:46]} 30. Rxc2 {[%emt 0:00:09]} Rxc2+ {[%emt 0:00:06]} 31. Bxc2 {[%emt 0:00:09]} Kf6 {[%emt 0:02:13]} 32. Bb3 {[%emt 0:05:18]} Bc6 {[%emt 0:01:00]} 33. Bc4 {[%emt 0:00:28]} b6 {[%emt 0:05:16]} 34. Ke3 {[%emt 0:00:22]} Bb7 {[%emt 0:00:27]} 35. b4 {[%emt 0:02:28]} Bc6 {[%emt 0:00:19]} 36. Bd3 {[%emt 0:00:52]} Bd5 {[%emt 0:00:23]} 37. Ba6 {[%emt 0:00:16]} Bb3 {[%emt 0:01:12]} 38. Bc8 {[%emt 0:02:46]} Bc4 {[%emt 0:00:33]} 39. Bd7 {[%emt 0:00:02]} Bf1 {[%emt 0:02:00]} 40. Kf2 {[%emt 0:00:16]} Bc4 {[%emt 0:02:14]} 41. Ke3 {[%emt 0:00:02]} Bd5 {[%emt 0:00:17]} 42. Bc8 {[%emt 0:00:22]} Bc6 {[%emt 0:00:18]} 43. Ba6 {[%emt 0:00:57]} Ba4 {[%emt 0:00:51]} 44. Bc8 {[%emt 0:00:09]} Bb3 {[%emt 0:00:27]} 45. Bd7 {[%emt 0:00:13]} Ba2 {[%emt 0:00:18]} 46. Bc8 {[%emt 0:00:09]} Bb1 {[%emt 0:01:31]} 47. Ba6 {[%emt 0:00:24]} Bc2 {[%emt 0:00:38]} 48. Bb5 {[%emt 0:00:16]} Bb3 {[%emt 0:02:06]} 49. Bd7 {[%emt 0:00:08]} Bd5 {[%emt 0:01:25]} 50. Bc8 {[%emt 0:00:45]} Bc6 {[%emt 0:02:25]} 51. Ba6 {[%emt 0:04:10]} h5 {[%emt 0:00:36]} 52. Bc8 {[%emt 0:00:42]} h4 {[%emt 0:01:02]} 53. gxh4 {[%emt 0:01:32]} f4+ {[%emt 0:00:13]} 54. Kd3 {[%emt 0:09:52]} gxh4 {[%emt 0:00:13]} 55. Kc4 {[%emt 0:01:01]} Kg5 {[%emt 0:03:21]} 56. Bh3 {[%emt 0:02:53]} Kf6 {[%emt 0:00:19]} 57. Bg4 {[%emt 0:00:11]} Ke7 {[%emt 0:02:49]} 58. Bf5 {[%emt 0:00:32]} Kf6 {[%emt 0:00:33]} 59. Bg4 {[%emt 0:00:36]} d5+ {[%emt 0:01:00]} 60. Kc3 {[%emt 0:01:15]} Bb5 {[%emt 0:00:08]} 61. Bh3 {[%emt 0:01:22]} Bf1 {[%emt 0:00:34]} 62. Kb3 {[%emt 0:03:08]} Ke7 {[%emt 0:00:35]} 63. Kc3 {[%emt 0:00:36]} Bb5 {[%emt 0:00:34]} 64. Kb3 {[%emt 0:00:21]} Bc4+ {[%emt 0:00:15]} 65. Kc3 {[%emt 0:00:04]} Kd6 {[%emt 0:00:13]} 66. Bf5 {[%emt 0:00:34]} Bf1 {[%emt 0:00:07]} 67. Bh3 {[%emt 0:00:10]} Kc6 {[%emt 0:00:23]} 68. Kb3 {[%emt 0:00:01]} Kd6 {[%emt 0:01:33]} 69. Kc3 {[%emt 0:00:08]} Bb5 {[%emt 0:00:20]} 70. Kb3 {[%emt 0:00:15]} Bd3 {[%emt 0:00:45]} 71. Kc3 {[%emt 0:00:07]} Be2 {[%emt 0:00:10]} 72. Kb3 {[%emt 0:00:07]} Kc7 {[%emt 0:00:45]} 73. Kc3 {[%emt 0:00:10]} a5 {[%emt 0:00:29]} 74. bxa5 {[%emt 0:01:22]} bxa5 {[%emt 0:00:02]} 75. Bf5 {[%emt 0:00:31]} Bf1 {[%emt 0:00:19]} 76. Bh3 {[%emt 0:00:02]} Kc6 {[%emt 0:00:27]} 77. Kb3 {[%emt 0:00:10]} Bb5 {[%emt 0:00:47]} 78. Kc3 {[%emt 0:00:17]} Bc4 {[%emt 0:01:01]} 79. Bf5 {[%emt 0:00:07]} Bf1 {[%emt 0:00:32]} 80. Bh3 {[%emt 0:00:03]} 1-0

[Event "13th Senioren-Cup Tegernsee 2025"]
[Site "Rottach-Egern"]
[Date "2025.04.05"]
[Round "8.7"]
[White "Miller, Klaus"]
[Black "Schoetzig, Detlef"]
[Result "1/2-1/2"]
[Annotator "NA"]
[ECO "B01"]
[WhiteElo "1911"]
[BlackElo "2106"]
[PlyCount "56"]
[EventDate "2025.03.25"]
[EventType "swiss"]
[EventCountry "GER"]
[SourceTitle "playchess.com"]
[Source "ChessBase"]
[SourceQuality "1"]
[TimeControl "7800+30"]

1. e4 {[%emt 0:00:06]} d5 {[%emt 0:00:49]} 2. exd5 {[%emt 0:00:30]} Nf6 {[%emt 0:00:06]} 3. Bb5+ {[%emt 0:01:58]} Nbd7 {[%emt 0:01:58]} 4. c4 {[%emt 0:05:05]} a6 {[%emt 0:00:42]} 5. Bxd7+ {[%emt 0:05:29]} Qxd7 {[%emt 0:06:55]} 6. d4 {[%emt 0:03:48]} c6 {[%emt 0:02:09]} 7. dxc6 {[%emt 0:03:31]} Qxc6 {[%emt 0:00:06]} 8. c5 {[%emt 0:06:08]} Qxg2 {[%emt 0:06:46]} 9. Qf3 {[%emt 0:00:10]} Qxf3 {[%emt 0:03:10]} 10. Nxf3 {[%emt 0:00:30]} Bf5 {[%emt 0:00:30]} 11. Nc3 {[%emt 0:00:30]} Rd8 {[%emt 0:00:30]} 12. Be3 {[%emt 0:00:30]} g6 {[%emt 0:00:30]} 13. O-O $17 {[%emt 0:00:30]} (13. Bc1 {[%emt 0:07:50]}) (13. Rc1 $15) 13... Bg7 {[%emt 0:00:30]} 14. Ne5 {[%emt 0:29:16]} Nd5 {[%emt 1:52:49]} 15. Nxd5 {[%emt 0:03:43]} Rxd5 {[%emt 0:00:00]} 16. f4 {[%emt 0:00:38]} O-O {[%emt 0:00:00]} 17. Kf2 {[%emt 0:07:40]} f6 {[%emt 0:00:00]} 18. Nc4 {[%emt 0:04:30]} Be4 {[%emt 0:00:00]} 19. Nb6 {[%emt 0:01:59]} Rh5 {[%emt 0:00:00]} 20. Kg3 {[%emt 0:01:34]} Rd8 {[%emt 0:00:00]} 21. Rad1 {[%emt 0:03:35]} Bc2 {[%emt 0:00:00]} 22. Rde1 {[%emt 0:13:38]} e5 {[%emt 0:00:00]} 23. d5 {[%emt 0:02:30]} Be4 {[%emt 0:00:00]} 24. fxe5 {[%emt 0:05:20]} fxe5 {[%emt 0:00:00]} 25. Bh6 {[%emt 0:02:41]} Bxh6 {[%emt 0:00:00]} 26. Rxe4 {[%emt 0:00:10]} Bf4+ {[%emt 0:00:00]} 27. Rfxf4 {[%emt 0:00:25]} exf4+ {[%emt 0:00:00]} 28. Rxf4 {[%emt 0:01:16]} Rhxd5 {[%emt 0:00:00]} 1/2-1/2

[Event "13th Senioren-Cup Tegernsee 2025"]
[Site "Rottach-Egern"]
[Date "2025.04.05"]
[Round "8.7"]
[White "Miller, Klaus"]
[Black "Schoetzig, Detlef"]
[Result "*"]
[Annotator "RC"]
[ECO "B01"]
[WhiteElo "1911"]
[BlackElo "2106"]
[PlyCount "25"]
[EventDate "2025.03.25"]
[EventType "swiss"]
[EventCountry "GER"]
[SourceTitle "playchess.com"]
[Source "ChessBase"]
[SourceQuality "1"]
[TimeControl "7800+30"]

1. e4 {[%emt 0:00:06]} d5 {[%emt 0:00:49]} 2. exd5 {[%emt 0:00:30]} Nf6 {[%emt 0:00:06]} 3. Bb5+ {[%emt 0:01:58]} Nbd7 {[%emt 0:01:58]} 4. c4 {[%emt 0:05:05]} a6 {[%emt 0:00:42]} 5. Bxd7+ {[%emt 0:05:29]} Qxd7 {[%emt 0:06:55]} 6. d4 {[%emt 0:03:48]} c6 {[%emt 0:02:09]} 7. dxc6 {[%emt 0:03:31]} Qxc6 {[%emt 0:00:06]} 8. c5 {[%emt 0:06:08]} Qxg2 {[%emt 0:06:46]} 9. Qf3 {[%emt 0:00:10]} Qxf3 {[%emt 0:03:10]} 10. Nxf3 {[%emt 0:00:30]} Bf5 {[%emt 0:00:30]} 11. Nc3 {[%emt 0:00:30]} Rd8 {[%emt 0:00:30]} 12. Be3 {[%emt 0:00:30]} g6 {[%emt 0:00:30]} 13. Bc1 {[%emt 0:07:50]} *

[Event "13th Senioren-Cup Tegernsee 2025"]
[Site "Rottach-Egern"]
[Date "2025.04.05"]
[Round "8.8"]
[White "Wenner, Tobias"]
[Black "Kirszenberg, Marc"]
[Result "1/2-1/2"]
[Annotator "RC"]
[ECO "A11"]
[WhiteElo "2078"]
[BlackElo "2066"]
[PlyCount "51"]
[EventDate "2025.03.25"]
[EventType "swiss"]
[EventCountry "GER"]
[SourceTitle "playchess.com"]
[Source "ChessBase"]
[SourceQuality "1"]
[TimeControl "7800+30"]

1. Nf3 {[%emt 0:00:03]} d5 {[%emt 2:11:00]} 2. c4 {[%emt 0:00:07]} c6 {[%emt 0:00:00]} 3. g3 {[%emt 0:00:09]} Nf6 {[%emt 0:00:00]} 4. Bg2 {[%emt 0:00:06]} Bf5 {[%emt 0:00:00]} 5. Qb3 {[%emt 0:00:40]} Qb6 {[%emt 0:00:00]} 6. d3 {[%emt 0:00:19]} e6 {[%emt 0:00:00]} 7. Be3 {[%emt 0:00:23]} Qxb3 {[%emt 0:00:00]} 8. axb3 {[%emt 0:00:02]} a6 {[%emt 0:00:00]} 9. Nh4 {[%emt 0:00:46]} Bg6 {[%emt 0:00:00]} 10. Bd2 {[%emt 0:01:18]} Nbd7 {[%emt 0:00:00]} 11. b4 {[%emt 0:00:50]} Be7 {[%emt 0:00:00]} 12. Nxg6 {[%emt 0:01:18]} hxg6 {[%emt 0:00:00]} 13. h4 {[%emt 0:00:49]} O-O {[%emt 0:00:00]} 14. O-O {[%emt 0:06:06]} Rfe8 {[%emt 0:00:00]} 15. Na3 {[%emt 0:05:18]} Bd6 {[%emt 0:00:00]} 16. Nc2 {[%emt 0:15:41]} Bc7 {[%emt 0:00:00]} 17. Rfc1 {[%emt 0:16:48]} Bb6 {[%emt 0:00:00]} 18. Ne3 {[%emt 0:08:09]} Ne5 {[%emt 0:00:00]} 19. b3 {[%emt 0:10:11]} Nfg4 {[%emt 0:00:00]} 20. Nxg4 {[%emt 0:01:29]} Nxg4 {[%emt 0:00:00]} 21. Be1 {[%emt 0:00:22]} Bd4 {[%emt 0:00:00]} 22. Ra2 {[%emt 0:00:34]} f5 {[%emt 0:00:00]} 23. Rd1 {[%emt 0:04:36]} Rad8 {[%emt 0:00:00]} 24. Bh3 {[%emt 0:01:34]} Nf6 {[%emt 0:00:00]} 25. e3 {[%emt 0:09:26]} Bb6 {[%emt 0:00:00]} 26. Bg2 {[%emt 0:12:45]} 1/2-1/2

[Event "13th Senioren-Cup Tegernsee 2025"]
[Site "Rottach-Egern"]
[Date "2025.04.05"]
[Round "8.9"]
[White "Wille, Thomas"]
[Black "Hafner, Robert"]
[Result "1-0"]
[Annotator "NA"]
[ECO "A12"]
[WhiteElo "2110"]
[BlackElo "2011"]
[PlyCount "178"]
[EventDate "2025.03.25"]
[EventType "swiss"]
[EventCountry "GER"]
[SourceTitle "playchess.com"]
[Source "ChessBase"]
[SourceQuality "1"]
[TimeControl "7800+30"]

1. c4 {[%emt 0:00:03]} c6 {[%emt 0:00:05]} 2. Nf3 {[%emt 0:00:06]} d5 {[%emt 0:00:04]} 3. b3 {[%emt 0:00:06]} Nf6 {[%emt 0:00:28]} 4. Bb2 {[%emt 0:00:07]} Bf5 {[%emt 0:00:16]} 5. d3 {[%emt 0:05:13]} h6 {[%emt 0:00:35]} 6. g3 {[%emt 0:03:54]} e6 {[%emt 0:00:06]} 7. Nbd2 {[%emt 0:00:41]} Be7 {[%emt 0:00:08]} 8. Bg2 {[%emt 0:00:11]} O-O {[%emt 0:00:36]} 9. O-O {[%emt 0:00:08]} Nbd7 {[%emt 0:00:07]} 10. Re1 {[%emt 0:03:48]} Bh7 {[%emt 0:00:07]} 11. a3 {[%emt 0:01:26]} a5 {[%emt 0:00:07]} 12. Ne5 {[%emt 0:06:18] A12: English Opening: 1...c6 with b3 by White.} Nxe5 {[%emt 0:00:14]} 13. Bxe5 {[%emt 0:00:01]} Nd7 {[%emt 0:12:55]} 14. Bc3 {[%emt 0:07:58]} Bf6 {[%emt 0:00:13]} 15. Qc1 {[%emt 1:48:00]} Qb6 {[%emt 0:09:51]} 16. Bxf6 {[%emt 0:00:00]} Nxf6 {[%emt 0:00:07]} 17. c5 {[%emt 0:00:00]} Qc7 {[%emt 0:02:37]} 18. Qc3 {[%emt 0:00:00]} e5 {[%emt 0:09:28]} 19. b4 {[%emt 0:00:00]} axb4 {[%emt 0:02:17]} 20. axb4 {[%emt 0:00:00]} e4 {[%emt 0:01:18]} 21. dxe4 {[%emt 0:00:00]} Nxe4 {[%emt 0:08:54]} 22. Bxe4 {[%emt 0:00:00]} Bxe4 {[%emt 0:00:06]} 23. Rxa8 {[%emt 0:00:00]} Rxa8 {[%emt 0:00:08]} 24. Ra1 {[%emt 0:00:00]} Rxa1+ {[%emt 0:16:05]} 25. Qxa1 {[%emt 0:00:00]} Bf5 {[%emt 0:00:11]} 26. Qd4 {[%emt 0:00:00]} Qe7 {[%emt 0:02:19]} 27. e3 {[%emt 0:00:00]} Be4 {[%emt 0:03:48]} 28. f3 {[%emt 0:00:00]} Bf5 {[%emt 0:00:37]} 29. Kf2 {[%emt 0:00:00]} Bc2 {[%emt 0:07:32]} 30. Qf4 {[%emt 0:00:00]} f6 $11 {[%emt 0:01:42]} 31. Qd4 {[%emt 0:00:00]} Kf7 {[%emt 0:00:27]} 32. Qc3 {[%emt 0:00:00]} Ba4 {[%emt 0:01:25]} 33. e4 {[%emt 0:00:00]} Bb5 {[%emt 0:06:52]} 34. Qe3 {[%emt 0:00:00]} Qe5 {[%emt 0:02:20]} 35. exd5 {[%emt 0:00:00]} Qxd5 {[%emt 0:20:19]} 36. Ne4 {[%emt 0:00:00]} Qa2+ {[%emt 0:01:16]} 37. Qd2 {[%emt 0:00:00]} Qb1 {[%emt 0:03:52]} 38. Nd6+ {[%emt 0:00:00]} Kg8 {[%emt 0:12:21]} 39. Nxb5 {[%emt 0:00:00]} cxb5 {[%emt 0:00:05]} 40. Kg2 {[%emt 0:00:00]} Kh7 {[%emt 0:00:35]} 41. g4 {[%emt 0:00:00]} Qb3 {[%emt 0:02:23]} 42. h4 {[%emt 0:00:00]} Qb1 {[%emt 0:00:45]} 43. h5 {[%emt 0:00:00]} f5 {[%emt 0:02:00]} 44. g5 {[%emt 0:00:00]} hxg5 {[%emt 0:00:06]} 45. Qxg5 {[%emt 0:00:00]} Qd3 {[%emt 0:06:52]} 46. Qg6+ {[%emt 0:00:00]} Kh8 {[%emt 0:00:11]} 47. Kg3 {[%emt 0:00:29]} Qc4 {[%emt 0:05:39]} 48. h6 {[%emt 0:03:03]} gxh6 {[%emt 0:00:05]} 49. Qxh6+ {[%emt 0:00:03]} Kg8 {[%emt 0:00:14]} 50. Qg6+ {[%emt 0:00:10]} Kh8 {[%emt 0:00:11]} 51. Qxf5 {[%emt 0:00:56]} Qxb4 {[%emt 0:00:17]} 52. Qc8+ {[%emt 0:00:05]} Kg7 {[%emt 0:01:18]} 53. Qxb7+ {[%emt 0:00:04]} Kf6 {[%emt 0:01:50]} 54. Qc6+ {[%emt 0:00:40]} Ke7 {[%emt 0:01:09]} 55. Qd6+ {[%emt 0:04:42]} Ke8 {[%emt 0:00:10]} 56. Kh3 {[%emt 0:03:04]} Qb3 {[%emt 0:01:29]} 57. Kg4 {[%emt 0:01:07]} Qc4+ {[%emt 0:00:30]} 58. f4 {[%emt 0:00:18]} Qg8+ {[%emt 0:00:47]} 59. Kf5 {[%emt 0:00:51]} Qf7+ {[%emt 0:00:51]} 60. Ke5 {[%emt 0:00:24]} Qh5+ {[%emt 0:00:20]} 61. Kd4 {[%emt 0:01:40]} Qd1+ {[%emt 0:00:18]} 62. Ke4 {[%emt 0:01:48]} Qh1+ {[%emt 0:00:25]} 63. Ke5 {[%emt 0:00:19]} Qh5+ {[%emt 0:00:09]} 64. f5 {[%emt 0:00:09]} Qh2+ {[%emt 0:00:37]} 65. Ke6 {[%emt 0:00:51]} Qh6+ {[%emt 0:01:01]} 66. f6 {[%emt 0:01:16]} Qh3+ {[%emt 0:00:12]} 67. Ke5 {[%emt 0:00:44]} Qh2+ {[%emt 0:00:15]} 68. Ke4 {[%emt 0:00:13]} Qe2+ {[%emt 0:00:52]} 69. Kf4 {[%emt 0:00:34]} Qf2+ {[%emt 0:00:13]} 70. Kg4 {[%emt 0:00:18]} Qe2+ {[%emt 0:00:35]} 71. Kf4 {[%emt 0:00:35]} Qf2+ {[%emt 0:00:05]} 72. Ke4 {[%emt 0:00:14]} Qe2+ {[%emt 0:00:06]} 73. Kf5 {[%emt 0:00:36]} Qh5+ {[%emt 0:00:12]} 74. Kf4 {[%emt 0:04:17]} Qh4+ {[%emt 0:00:40]} 75. Kf3 {[%emt 0:00:00]} Qh1+ {[%emt 0:00:24]} 76. Kf2 {[%emt 0:00:00]} Qh4+ {[%emt 0:00:15]} 77. Kf1 {[%emt 0:00:00]} Qc4+ {[%emt 0:00:47]} 78. Ke1 {[%emt 0:00:00]} Qh4+ {[%emt 0:00:38]} 79. Kd2 {[%emt 0:00:00]} Qb4+ {[%emt 0:00:24]} 80. Kd3 {[%emt 0:00:00]} Qb1+ {[%emt 0:00:39]} 81. Kc3 {[%emt 0:00:00]} b4+ {[%emt 0:01:10]} 82. Kc4 {[%emt 0:00:00]} Qa2+ {[%emt 0:01:07]} 83. Kb5 {[%emt 0:00:07]} Qa7 {[%emt 0:00:42]} 84. c6 {[%emt 0:02:55]} b3 {[%emt 0:00:19]} 85. c7 {[%emt 0:00:30]} Qb7+ {[%emt 0:00:17]} 86. Kc5 {[%emt 0:00:26]} Qa7+ {[%emt 0:00:45]} 87. Kc4 {[%emt 0:00:22]} Qa4+ {[%emt 0:00:09]} 88. Kc3 {[%emt 0:00:43]} Qa5+ {[%emt 0:00:23]} 89. Kxb3 {[%emt 0:00:34]} Qa1 {[%emt 0:00:12]} 1-0

[Event "13th Senioren-Cup Tegernsee 2025"]
[Site "Rottach-Egern"]
[Date "2025.04.05"]
[Round "8.10"]
[White "Hess, Christian"]
[Black "Wegemund, Hubert"]
[Result "1-0"]
[Annotator "RC"]
[ECO "D32"]
[WhiteElo "2168"]
[BlackElo "2018"]
[PlyCount "55"]
[EventDate "2025.03.25"]
[EventType "swiss"]
[EventCountry "GER"]
[SourceTitle "playchess.com"]
[Source "ChessBase"]
[SourceQuality "1"]
[TimeControl "7800+30"]

1. Nf3 {[%emt 0:00:07]} Nf6 {[%emt 0:00:32]} 2. c4 {[%emt 0:00:48]} e6 {[%emt 0:00:14]} 3. Nc3 {[%emt 0:02:36]} d5 {[%emt 0:00:19]} 4. d4 {[%emt 0:00:29]} c5 {[%emt 0:00:38]} 5. cxd5 {[%emt 0:00:49]} exd5 {[%emt 0:00:04]} 6. Bg5 {[%emt 0:00:38]} Be6 {[%emt 0:16:40]} 7. e4 {[%emt 0:21:39]} dxe4 {[%emt 0:00:29]} 8. Bxf6 {[%emt 0:05:48]} Qxf6 {[%emt 0:07:12]} 9. Nxe4 {[%emt 0:01:07]} Qf5 {[%emt 0:02:25]} 10. Bd3 {[%emt 0:08:18]} Qd5 {[%emt 0:01:38]} 11. Nc3 {[%emt 0:08:39]} Qh5 {[%emt 0:10:43]} 12. d5 {[%emt 0:08:37]} Bg4 {[%emt 0:01:25]} 13. Qe2+ {[%emt 0:02:24]} Kd8 {[%emt 0:01:59]} 14. O-O-O {[%emt 0:14:46]} Bd6 {[%emt 0:03:22]} 15. Ne4 {[%emt 0:09:43]} Bf4+ {[%emt 0:00:58]} 16. Kb1 {[%emt 0:00:54]} Nd7 {[%emt 0:04:50]} 17. Qc2 {[%emt 0:02:45]} Bxf3 {[%emt 0:03:17]} 18. gxf3 {[%emt 0:00:20]} Rc8 {[%emt 0:05:21]} 19. Bb5 {[%emt 0:04:10]} Qf5 {[%emt 0:13:05]} 20. Bxd7 {[%emt 0:05:14]} Qxd7 {[%emt 0:00:26]} 21. Nxc5 {[%emt 0:01:30]} Qc7 {[%emt 0:01:15]} 22. Qf5 {[%emt 0:00:45]} Qxc5 {[%emt 0:09:51]} 23. Qxf4 {[%emt 0:00:08]} Qc2+ {[%emt 0:04:35]} 24. Ka1 {[%emt 0:00:05]} Qc7 {[%emt 0:05:46]} 25. d6 {[%emt 0:02:47]} Qd7 {[%emt 0:00:48]} 26. Rhe1 {[%emt 0:02:33]} Re8 {[%emt 0:00:50]} 27. Re7 {[%emt 0:06:56]} Qc6 {[%emt 0:02:50]} 28. Rxe8+ {[%emt 0:00:52]} 1-0